bitfinex/quotes_ETHUSD_20250517
["timestamp","ask_amount","ask_price","bid_price","bid_amount"]
[1747468556114,4.02414486,2485.0,2484.9,4.90912456]
[1747468556328,13.50865935,2485.0,2484.9,4.90912456]
[1747468556654,21.50865935,2485.0,2484.9,4.90912456]
[1747468557627,20.29614486,2485.0,2484.9,4.90912456]
[1747468558852,12.29614486,2485.0,2484.9,4.90912456]
[1747468560644,4.02463285,2484.7,2484.4,4.90912456]
[1747468560841,4.02463285,2484.7,2484.5,4.90912456]
[1747468561315,7.722,2485.0,2484.5,5.47670702]
[1747468561520,7.722,2484.9,2484.6,0.7667]
[1747468562445,11.74631014,2484.9,2484.6,0.7667]
[1747468562824,4.57400196,2485.1,2484.6,4.79141783]
[1747468562825,11.7461298,2485.1,2484.6,4.79141783]
[1747468563019,4.0241298,2485.1,2484.7,1.02681249]
[1747468563330,11.74588141,2485.2,2484.8,0.7557]
[1747468563524,11.74588141,2485.2,2484.9,4.90912456]
[1747468565206,7.722,2485.2,2484.9,4.90912456]
[1747468566645,7.722,2485.2,2485.0,4.90912456]
[1747468566873,4.57339426,2485.5,2485.0,5.87805223]
[1747468567075,11.74439426,2485.5,2485.1,0.7557]
[1747468567375,7.721,2485.5,2485.2,4.90912456]
[1747468568070,4.78007886,2486.0,2485.4,4.81942503]
[1747468568273,4.02294916,2485.8,2485.5,4.90912456]
[1747468568479,4.02220255,2486.2,2485.7,4.0229147]
[1747468568643,1.27559826,2486.3,2485.8,0.796]
[1747468568851,12.02211551,2486.3,2485.8,4.81884905]
[1747468569040,12.02211551,2486.3,2485.8,2.94361426]
[1747468569274,2.00363531,2486.4,2486.0,0.796]
[1747468569590,4.02205689,2486.3,2486.1,4.90912456]
[1747468570406,4.02204581,2486.3,2486.1,4.90912456]
[1747468571587,5.32970255,2486.2,2486.1,4.90912456]
[1747468571785,14.26487739,2486.2,2486.1,4.90912456]
[1747468572283,21.98387739,2486.2,2486.1,4.90912456]
[1747468572483,14.26487739,2486.2,2486.1,4.90912456]
[1747468572704,21.04870255,2486.2,2486.1,4.90912456]
[1747468572845,13.04870255,2486.2,2486.1,4.90912456]
[1747468573046,4.57220255,2486.2,2486.1,4.90912456]
[1747468573254,12.29120255,2486.2,2486.1,4.90912456]
[1747468574795,11.74120255,2486.2,2486.1,4.90912456]
[1747468574996,4.02220255,2486.2,2486.1,4.90912456]
[1747468575613,6.22490739,2486.2,2486.1,4.90912456]
[1747468576098,6.98970739,2486.2,2486.1,4.90912456]
[1747468576960,6.98970739,2486.2,2485.3,8.519]
[1747468576961,4.57301162,2485.7,2485.6,4.90912456]
[1747468577377,4.57301162,2485.7,2485.4,4.90912456]
[1747468577378,4.57333534,2485.5,2485.4,4.90912456]
[1747468581302,4.02333534,2485.5,2485.4,4.90912456]
[1747468581523,4.02333534,2485.5,2485.4,6.21643702]
[1747468581923,4.0232336,2485.6,2485.4,6.21643702]
[1747468582109,4.02333534,2485.5,2485.4,5.72552456]
[1747468582619,4.02333534,2485.5,2485.4,4.90912456]
[1747468582824,5.39983534,2485.5,2485.4,4.90912456]
[1747468583947,4.57333534,2485.5,2485.4,4.90912456]
[1747468584125,12.29133534,2485.5,2485.4,4.90912456]
[1747468584701,11.74133534,2485.5,2485.4,4.90912456]
[1747468586125,4.02324225,2485.6,2485.4,5.48167702]
[1747468586313,11.74112851,2485.7,2485.4,5.48167702]
[1747468586515,4.02321344,2485.6,2485.4,5.48167702]
[1747468587495,4.02321344,2485.6,2485.5,4.90912456]
[1747468589535,11.74102502,2485.7,2485.5,4.90912456]
[1747468590529,11.74102502,2485.7,2485.6,4.90912456]
[1747468591731,7.718,2485.7,2485.6,4.90912456]
[1747468593724,11.74101162,2485.7,2485.6,4.90912456]
[1747468594436,7.718,2485.7,2485.6,4.90912456]
[1747468594640,7.717,2485.8,2485.6,4.90912456]
[1747468594800,11.73987134,2485.8,2485.6,4.90912456]
[1747468595635,7.717,2485.9,2485.6,5.40003702]
[1747468595833,4.02262205,2486.0,2485.6,5.40003702]
[1747468596042,11.73962205,2486.0,2485.6,5.40003702]
[1747468596339,11.73962205,2486.0,2485.7,0.7825]
[1747468596550,11.73962205,2486.0,2485.8,4.90912456]
[1747468597841,4.02262205,2486.0,2485.8,4.90912456]
[1747468598838,4.02268796,2485.9,2485.8,4.90912456]
[1747468601609,4.02242214,2486.1,2485.8,4.90912456]
[1747468601934,4.02228646,2486.2,2485.8,4.90912456]
[1747468602141,4.02228646,2486.2,2485.9,5.73532456]
[1747468602849,10.79633531,2486.6,2485.9,5.73532456]
[1747468603006,4.02178944,2486.5,2486.0,8.93151513]
[1747468603411,2.00363531,2486.6,2486.3,0.8262]
[1747468603739,2.00363531,2486.6,2486.5,4.02171727]
[1747468603947,2.00363531,2486.6,2486.5,2.14949849]
[1747468604235,2.00363531,2486.6,2486.5,6.17121576]
[1747468604629,2.00363531,2486.6,2486.5,6.99741576]
[1747468604946,2.00363531,2486.6,2486.5,19.90654032]
[1747468605449,2.00363531,2486.6,2486.5,35.34954032]
[1747468606939,2.62039589,2487.3,2487.0,0.8262]
[1747468607241,2.62039589,2487.3,2487.1,11.10521629]
[1747468607637,2.62039589,2487.3,2487.2,2.90548925]
[1747468608934,6.64081964,2487.3,2487.2,2.90548925]
[1747468609136,2.62039589,2487.3,2487.2,2.90548925]
[1747468609451,4.02017898,2487.5,2487.2,2.90548925]
[1747468609622,4.02017898,2487.5,2487.2,4.09863088]
[1747468611145,4.02001074,2487.6,2487.2,4.09863088]
[1747468611437,4.01983243,2487.7,2487.2,4.09863088]
[1747468611438,4.01983243,2487.7,2487.3,2.90548925]
[1747468611657,4.01983243,2487.7,2487.4,3.66258925]
[1747468611858,4.01983243,2487.7,2487.5,2.90548925]
[1747468612029,4.01983243,2487.7,2487.6,2.90548925]
[1747468612447,4.0196305,2487.8,2487.6,2.90548925]
[1747468612650,4.01961572,2487.8,2487.7,2.90548925]
[1747468614356,6.01987206,2487.9,2487.7,2.90548925]
[1747468614532,2.0003301,2487.9,2487.6,2.90548925]
[1747468614737,2.0003301,2487.9,2487.6,10.61748925]
[1747468614738,4.01961572,2487.8,2487.6,10.61748925]
[1747468615649,4.01970863,2487.8,2487.6,10.61748925]
[1747468616157,4.019687,2487.8,2487.6,2.90548925]
[1747468617034,4.01954002,2487.9,2487.6,2.90548925]
[1747468617237,4.01936926,2488.0,2487.7,2.90548925]
[1747468617956,4.01961572,2487.8,2487.7,2.90548925]
[1747468621034,4.56961572,2487.8,2487.7,2.90548925]
[1747468621534,4.01961572,2487.8,2487.7,2.90548925]
[1747468623441,4.5692926,2488.0,2487.7,2.90548925]
[1747468623651,4.0195741,2487.9,2487.7,2.90548925]
[1747468624776,4.0192926,2488.0,2487.7,2.90548925]
[1747468625580,4.01945619,2487.9,2487.7,2.90548925]
[1747468625882,4.01935123,2488.0,2487.8,0.7877]
[1747468626287,4.01907339,2488.2,2487.8,0.7877]
[1747468626779,4.01907339,2488.2,2487.9,2.90548925]
[1747468627073,4.0192926,2488.0,2487.9,2.90548925]
[1747468628779,5.3729926,2488.0,2487.9,2.90548925]
[1747468628980,6.31220796,2488.0,2487.9,2.90548925]
[1747468629452,14.31220796,2488.0,2487.9,2.90548925]
[1747468629643,4.5697773,2487.7,2487.6,2.90548925]
[1747468629841,4.5697773,2487.7,2487.2,7.71]
[1747468629842,4.02017546,2487.5,2487.3,2.90548925]
[1747468630569,4.02001549,2487.6,2487.3,2.90548925]
[1747468630771,4.02012415,2487.5,2487.3,2.90548925]
[1747468630952,4.02002204,2487.6,2487.3,2.90548925]
[1747468631148,4.02011479,2487.5,2487.3,2.90548925]
[1747468631376,4.01999488,2487.6,2487.3,4.09665088]
[1747468631875,4.0198286,2487.7,2487.3,4.09665088]
[1747468633779,4.01963633,2487.8,2487.3,8.11700609]
[1747468633971,7.708,2488.1,2487.4,0.7715]
[1747468634153,4.01952607,2487.9,2487.4,4.79167813]
[1747468634376,4.01952607,2487.9,2487.5,1.2908728]
[1747468634560,4.01962329,2487.8,2487.6,7.709]
[1747468635393,4.01970571,2487.8,2487.5,1.2908728]
[1747468635575,4.01987059,2487.7,2487.6,2.90548925]
[1747468635966,0.769,2488.2,2487.6,3.67698925]
[1747468636164,7.708,2488.3,2487.7,2.90548925]
[1747468636372,4.01916782,2488.1,2487.7,2.90548925]
[1747468636575,4.01938586,2488.0,2487.7,2.90548925]
[1747468637220,4.01938586,2488.0,2487.7,3.67519436]
[1747468638299,4.01945415,2487.9,2487.7,10.61348925]
[1747468638846,4.83923202,2488.0,2487.3,0.7628]
[1747468639051,4.02018132,2487.5,2487.3,7.708]
[1747468639274,4.57005071,2487.6,2487.4,6.02]
[1747468639496,4.0201005,2487.5,2487.4,6.02]
[1747468639661,4.5701005,2487.5,2487.4,6.02]
[1747468644890,4.57042375,2487.3,2487.2,6.02]
[1747468645612,0.55,2487.3,2487.2,6.02]
[1747468647574,4.02028148,2487.4,2487.3,0.8054]
[1747468647779,4.77794534,2488.3,2487.6,0.8054]
[1747468647995,4.01913832,2488.1,2487.7,7.709]
[1747468648202,4.01904259,2488.2,2487.7,11.72876032]
[1747468649204,4.01869197,2488.4,2487.7,7.709]
[1747468649404,4.01898488,2488.2,2487.7,11.72868437]
[1747468650814,4.01916042,2488.1,2487.7,7.709]
[1747468651002,4.01886145,2488.3,2487.8,1.3016801]
[1747468651203,4.01913564,2488.1,2487.8,1.3016801]
[1747468651597,4.01919802,2488.1,2487.8,1.3016801]
[1747468652894,5.63495824,2488.5,2487.8,1.3016801]
[1747468652895,4.01899724,2488.2,2487.8,1.3016801]
[1747468653304,4.01913375,2488.1,2487.8,7.3216801]
[1747468653505,4.01904886,2488.2,2487.9,1.50306801]
[1747468653899,11.72467044,2488.4,2488.0,0.8054]
[1747468654334,4.01867044,2488.4,2488.0,0.8054]
[1747468654599,4.01891788,2488.3,2488.0,0.8054]
[1747468654805,4.01891788,2488.3,2488.1,0.2308468]
[1747468655303,4.01856073,2488.5,2488.1,0.2308468]
[1747468655987,7.706,2488.6,2488.2,7.708]
[1747468655988,4.01840613,2488.6,2488.2,7.708]
[1747468656402,4.01859326,2488.5,2488.2,7.708]
[1747468656618,4.01840613,2488.6,2488.2,7.708]
[1747468656619,4.01865793,2488.4,2488.2,7.708]
[1747468656804,4.01821398,2488.7,2488.2,9.18442468]
[1747468657003,4.01844895,2488.6,2488.2,9.18442468]
[1747468657647,11.72403489,2488.8,2488.2,9.18442468]
[1747468657648,4.01821111,2488.7,2488.3,0.8054]
[1747468658118,4.01832662,2488.6,2488.3,0.8054]
[1747468658302,4.01855215,2488.5,2488.2,1.47642468]
[1747468658502,4.01855215,2488.5,2488.3,7.708]
[1747468659505,4.01839608,2488.6,2488.3,13.728]
[1747468662544,4.01839608,2488.6,2488.4,6.02]
[1747468664256,4.0182331,2488.7,2488.4,6.02]
[1747468664458,4.0182331,2488.7,2488.5,2.1736]
[1747468664667,8.29882242,2489.3,2488.6,6.02]
[1747468664953,4.01800064,2488.8,2488.7,6.02]
[1747468665122,4.01816209,2488.7,2488.6,13.724]
[1747468665328,4.01816209,2488.7,2488.6,15.17648]
[1747468666953,4.01816209,2488.7,2488.6,7.47248]
[1747468667147,4.01816209,2488.7,2488.6,6.02]
[1747468668938,4.01793399,2488.9,2488.6,6.02]
[1747468669359,4.01782573,2489.0,2488.7,0.7828]
[1747468670317,4.01760107,2489.1,2488.7,0.7828]
[1747468670758,4.01760107,2489.1,2488.8,0.48011126]
[1747468671257,4.01735754,2489.2,2488.8,0.48011126]
[1747468671562,4.01755636,2489.1,2488.9,0.7828]
[1747468671770,0.7646,2489.3,2488.8,0.48011126]
[1747468671947,4.01786402,2488.9,2488.6,0.7828]
[1747468672256,4.01777683,2489.0,2488.7,7.703]
[1747468672626,4.01744656,2489.2,2488.7,11.7210981]
[1747468672828,4.01744656,2489.2,2488.8,1.25038981]
[1747468673268,4.01744656,2489.2,2488.9,0.7858]
[1747468673758,4.01703221,2489.4,2488.9,0.7858]
[1747468673922,4.01723614,2489.3,2488.9,0.7858]
[1747468675165,4.01703221,2489.4,2488.9,0.7858]
[1747468675391,4.01728305,2489.3,2489.0,0.60540857]
[1747468675561,4.01703221,2489.4,2489.0,0.60540857]
[1747468675760,4.01751637,2489.1,2488.9,0.7858]
[1747468675961,4.01743334,2489.2,2488.9,0.7858]
[1747468676257,4.01753522,2489.1,2488.9,0.7858]
[1747468676563,4.01743366,2489.2,2488.9,0.7858]
[1747468676867,4.01744185,2489.2,2488.9,0.7858]
[1747468677024,4.01744185,2489.2,2489.0,0.20361898]
[1747468677223,4.01719521,2489.3,2489.0,0.20361898]
[1747468679025,4.01735591,2489.2,2489.0,0.20361898]
[1747468679860,4.01727207,2489.3,2489.0,0.20361898]
[1747468680067,4.01692456,2489.5,2489.0,0.20361898]
[1747468680373,4.01711636,2489.4,2489.0,0.20361898]
[1747468680767,4.01720142,2489.3,2489.0,0.20361898]
[1747468681062,4.017303,2489.3,2489.0,0.20361898]
[1747468681271,4.017041,2489.4,2489.0,0.20361898]
[1747468681570,4.01694434,2489.5,2489.0,4.22120024]
[1747468681766,4.01694434,2489.5,2489.1,0.90247697]
[1747468681969,4.01694434,2489.5,2489.2,7.702]
[1747468682364,4.01694434,2489.5,2489.3,0.7925]
[1747468682572,7.7,2489.6,2489.2,7.702]
[1747468682741,4.01719358,2489.3,2489.2,7.702]
[1747468682941,4.01709868,2489.4,2489.2,8.6620596]
[1747468684093,4.01719358,2489.3,2489.2,8.6620596]
[1747468685159,4.01719358,2489.3,2489.2,14.6820596]
[1747468685490,4.01707482,2489.4,2489.2,14.6820596]
[1747468685848,4.01707482,2489.4,2489.3,6.02]
[1747468686685,4.01707482,2489.4,2489.3,7.56745596]
[1747468688358,4.79864228,2489.7,2489.3,7.56745596]
[1747468688657,4.01649555,2489.8,2489.3,6.35712252]
[1747468689181,8.5025,2490.1,2489.3,2.33995596]
[1747468689352,4.01639244,2489.8,2489.4,2.10393405]
[1747468689904,4.0163138,2489.9,2489.4,6.12096175]
[1747468690445,4.01639103,2489.8,2489.4,2.10393405]
[1747468690641,8.5025,2490.1,2489.4,2.10393405]
[1747468690885,4.01701445,2489.5,2489.3,7.701]
[1747468691396,4.01714991,2489.4,2489.3,7.701]
[1747468692585,4.01627357,2489.9,2489.4,4.80949901]
[1747468693585,4.01610983,2490.0,2489.5,4.01678642]
[1747468693894,7.697,2490.1,2489.6,6.02]
[1747468694094,11.71290859,2490.1,2489.7,0.602]
[1747468694290,4.01614338,2490.0,2489.8,6.02]
[1747468694499,4.01614338,2490.0,2489.9,6.02]
[1747468694661,4.01622555,2489.9,2489.8,6.02]
[1747468696091,4.01593173,2490.1,2489.8,6.02]
[1747468696285,4.01622555,2489.9,2489.8,6.02]
[1747468700804,4.01590297,2490.1,2489.8,6.02]
[1747468701177,4.01606425,2490.0,2489.9,6.02]
[1747468701378,4.01594651,2490.1,2489.9,6.02]
[1747468701580,4.01606425,2490.0,2489.9,6.02]
[1747468701779,4.01598327,2490.1,2489.9,6.02]
[1747468702181,4.01591301,2490.1,2489.9,6.02]
[1747468702384,4.01591301,2490.1,2489.9,6.90393]
[1747468703418,4.01571614,2490.3,2489.9,0.88393]
[1747468703576,4.01592718,2490.1,2489.8,2.2173]
[1747468705708,4.01611533,2490.0,2489.8,2.2173]
[1747468705906,4.01590641,2490.1,2489.8,2.2173]
[1747468706288,4.01558045,2490.3,2489.8,2.2173]
[1747468706490,4.0157417,2490.2,2489.8,2.2173]
[1747468707203,4.01591266,2490.1,2489.8,2.2173]
[1747468707782,1.46026667,2490.9,2490.0,0.7511]
[1747468707995,4.01568633,2490.3,2490.1,7.696]
[1747468708203,4.01572755,2490.3,2490.1,7.696]
[1747468708511,4.01550696,2490.4,2490.1,7.696]
[1747468709484,4.01566417,2490.3,2490.1,7.696]
[1747468709688,4.01566417,2490.3,2490.2,0.84471]
[1747468709887,4.01548944,2490.4,2490.2,0.84471]
[1747468711079,4.01548944,2490.4,2490.0,0.7511]
[1747468711080,4.01606425,2490.0,2489.9,0.22173]
[1747468711280,4.0159256,2490.1,2489.9,7.696]
[1747468711822,4.01543957,2490.4,2489.9,7.696]
[1747468711996,4.01582451,2490.2,2490.0,0.7996]
[1747468712408,4.01547675,2490.4,2490.1,7.696]
[1747468712611,4.01558045,2490.3,2490.1,7.696]
[1747468712990,4.0157417,2490.2,2490.1,7.696]
[1747468713328,4.01567295,2490.3,2490.1,7.696]
[1747468715349,4.01565288,2490.3,2490.1,7.696]
[1747468715557,8.4866,2490.6,2489.8,0.7893]
[1747468715719,1.86683047,2490.5,2490.0,7.695]
[1747468715944,4.01581043,2490.2,2490.0,7.695]
[1747468716234,4.01565601,2490.3,2490.0,7.695]
[1747468716449,4.01541224,2490.5,2490.0,7.695]
[1747468716778,8.4866,2490.6,2490.0,7.695]
[1747468716779,4.01558873,2490.3,2490.0,7.695]
[1747468717248,4.01558873,2490.3,2490.0,8.9450598]
[1747468717636,4.01555127,2490.4,2490.0,8.9450598]
[1747468717956,12.37371482,2490.7,2490.1,4.80511906]
[1747468718153,4.01511504,2490.6,2490.1,4.80511906]
[1747468719216,4.01511504,2490.6,2490.2,6.02]
[1747468719433,4.01511504,2490.6,2490.2,7.99701789]
[1747468720561,0.6667,2490.7,2490.3,4.01551145]
[1747468720769,0.6667,2490.7,2490.4,6.02]
[1747468720929,0.6667,2490.7,2490.4,10.03539521]
[1747468721132,0.6667,2490.7,2490.4,6.02]
[1747468722441,0.6667,2490.7,2490.4,7.62282305]
[1747468722640,0.6667,2490.7,2490.6,4.01509676]
[1747468723569,0.6667,2490.7,2490.6,10.03509676]
[1747468725033,0.6667,2490.7,2490.6,10.85519676]
[1747468725443,0.6667,2490.7,2490.6,18.85519676]
[1747468726260,0.6667,2490.7,2490.6,29.13519676]
[1747468726464,0.6667,2490.7,2490.6,32.42331521]
[1747468727067,3.44379589,2491.9,2491.5,4.01356695]
[1747468727271,3.44379589,2491.9,2491.6,4.01338975]
[1747468727580,2.62039589,2491.9,2491.5,17.05692405]
[1747468727737,2.62039589,2491.9,2491.7,4.01332346]
[1747468727938,2.62039589,2491.9,2491.6,5.3533]
[1747468728155,2.62039589,2491.9,2491.7,7.69]
[1747468729194,2.62039589,2491.9,2491.6,4.01345909]
[1747468729396,2.62039589,2491.9,2491.7,7.69]
[1747468730461,2.62039589,2491.9,2491.7,11.7032977]
[1747468730791,0.8129,2492.1,2491.7,11.7032977]
[1747468731816,0.8129,2492.1,2491.7,7.69]
[1747468731993,4.82560785,2492.1,2491.7,7.69]
[1747468732294,4.82560785,2492.1,2491.6,5.3533]
[1747468732460,4.01332423,2491.7,2491.6,5.3533]
[1747468732673,4.8425752,2491.9,2491.6,5.3533]
[1747468733164,4.01325957,2491.8,2491.6,5.3533]
[1747468733895,4.01255757,2492.2,2491.6,6.1616]
[1747468733896,0.8295,2492.2,2491.6,6.1616]
[1747468734089,4.56301083,2491.9,2491.6,6.1616]
[1747468734289,4.01278869,2492.1,2491.6,9.36670236]
[1747468734470,4.01278869,2492.1,2491.7,5.3533]
[1747468734665,0.8295,2492.2,2491.7,5.3533]
[1747468734666,4.84206033,2492.2,2491.7,5.3533]
[1747468734868,4.01275727,2492.1,2491.7,5.3533]
[1747468736411,4.01285719,2492.0,2491.7,5.3533]
[1747468736916,4.01275947,2492.1,2491.7,5.3533]
[1747468737065,4.01268378,2492.1,2491.7,9.36657674]
[1747468737271,4.01284401,2492.0,2491.8,7.687]
[1747468737921,4.84209704,2492.2,2491.8,7.687]
[1747468738080,4.0126801,2492.1,2491.8,7.687]
[1747468739011,4.012853,2492.0,2491.8,7.687]
[1747468739710,4.01268006,2492.1,2491.7,5.3533]
[1747468739899,4.79116317,2491.8,2491.7,5.3533]
[1747468741324,5.34116317,2491.8,2491.7,5.3533]
[1747468745012,4.01364639,2491.5,2491.4,5.3533]
[1747468745218,4.01364639,2491.5,2490.9,0.8316]
[1747468745219,4.01380749,2491.4,2491.1,7.687]
[1747468745514,4.01395972,2491.4,2491.1,8.9370598]
[1747468746325,4.01371684,2491.5,2491.1,8.9370598]
[1747468747310,4.01350925,2491.6,2491.1,12.9512713]
[1747468747515,11.69750925,2491.6,2491.1,12.9512713]
[1747468747816,4.01427056,2491.2,2490.8,7.687]
[1747468748116,4.01427056,2491.2,2490.9,5.3533]
[1747468748514,4.56389459,2491.4,2490.9,9.36786936]
[1747468748716,4.56389459,2491.4,2491.0,1.70548694]
[1747468748900,4.56380589,2491.5,2491.1,0.8204]
[1747468749616,4.01381967,2491.4,2491.1,0.8204]
[1747468750321,4.01381967,2491.4,2491.0,1.70548694]
[1747468752535,4.01381967,2491.4,2491.1,5.3533]
[1747468755634,4.01381967,2491.4,2491.2,5.3533]
[1747468756448,4.01396861,2491.3,2491.2,5.3533]
[1747468757337,4.01380937,2491.4,2491.2,5.3533]
[1747468757500,4.01348531,2491.6,2491.2,6.46061833]
[1747468757700,4.01366215,2491.5,2491.2,6.46061833]
[1747468758746,4.01366215,2491.5,2491.3,5.3533]
[1747468758946,4.01380749,2491.4,2491.0,4.01430295]
[1747468759250,0.55,2491.6,2491.1,4.01427361]
[1747468759455,4.56358829,2491.6,2491.2,0.40544132]
[1747468759624,4.01348908,2491.6,2491.3,6.8102]
[1747468760022,4.01349626,2491.6,2491.3,6.8102]
[1747468762127,7.682,2491.8,2491.3,6.02]
[1747468762128,4.01371577,2491.5,2491.3,6.02]
[1747468762329,4.01380749,2491.4,2491.3,6.02]
[1747468764544,4.01380749,2491.4,2491.2,7.683]
[1747468765244,4.80282801,2491.5,2491.2,7.683]
[1747468765933,0.7891,2491.4,2491.0,6.02]
[1747468766123,4.0125121,2492.3,2491.1,0.7902]
[1747468766124,0.7891,2491.7,2491.1,0.7902]
[1747468766348,4.01359955,2491.6,2491.1,0.7902]
[1747468766644,4.0137863,2491.5,2491.1,8.4732]
[1747468766840,4.01382959,2491.4,2491.1,10.32397365]
[1747468769367,4.56358811,2491.6,2491.1,14.33819261]
[1747468770045,4.01336823,2491.7,2491.2,4.01408213]
[1747468770417,4.01340139,2491.7,2491.3,0.8035]
[1747468770641,4.01340139,2491.7,2491.4,6.02]
[1747468770847,0.55,2491.8,2491.4,6.02]
[1747468771050,4.01362019,2491.6,2491.4,6.02]
[1747468771347,0.55,2491.6,2491.4,6.02]
[1747468771547,4.01364639,2491.5,2491.4,6.02]
[1747468771749,4.56355462,2491.6,2491.4,6.02]
[1747468772553,4.01337367,2491.7,2491.4,6.02]
[1747468772757,4.01337367,2491.7,2491.4,7.7917084]
[1747468773249,4.01320005,2491.8,2491.4,8.5856084]
[1747468773753,4.01320005,2491.8,2491.5,6.02]
[1747468774251,4.01298799,2492.0,2491.5,6.02]
[1747468774456,4.01312746,2491.9,2491.6,6.02]
[1747468777466,4.01290959,2492.0,2491.6,6.02]
[1747468777769,4.01290959,2492.0,2491.7,0.7594]
[1747468777940,4.01290959,2492.0,2491.7,1.92454435]
[1747468778850,4.01275071,2492.1,2491.7,1.92454435]
[1747468779039,4.01275071,2492.1,2491.7,9.60654435]
[1747468779766,4.01287231,2492.0,2491.7,9.60654435]
[1747468781567,4.01276844,2492.1,2491.7,9.60654435]
[1747468782162,4.01276844,2492.1,2491.8,1.96400253]
[1747468782353,4.82199659,2492.3,2491.8,1.96400253]
[1747468782354,4.01284188,2492.0,2491.8,1.96400253]
[1747468782562,4.01252821,2492.2,2491.9,6.02]
[1747468782855,4.01284109,2492.0,2491.9,6.02]
[1747468783965,4.01252821,2492.2,2491.9,6.02]
[1747468784472,4.0126872,2492.1,2491.9,7.77905469]
[1747468785339,8.55,2492.4,2491.9,7.77905469]
[1747468785557,4.01275433,2492.1,2492.0,6.02]
[1747468787374,4.01268006,2492.1,2492.0,6.02]
[1747468795184,0.55,2492.4,2492.0,6.02]
[1747468795490,4.01232912,2492.4,2492.1,0.7713]
[1747468795865,4.01240339,2492.3,2492.1,0.7713]
[1747468796502,4.0122679,2492.4,2492.2,6.02]
[1747468797405,6.0268517,2492.6,2492.4,0.7627]
[1747468797406,2.0148734,2492.6,2492.4,0.7627]
[1747468797683,2.0148734,2492.6,2492.5,1.2451973]
[1747468799977,6.02674855,2492.6,2492.5,1.2451973]
[1747468800172,4.0120361,2492.5,2492.2,6.7827]
[1747468800528,4.01195212,2492.6,2492.3,6.02]
[1747468800784,4.01195212,2492.6,2492.4,7.676]
[1747468800982,4.01195212,2492.6,2492.3,6.02]
[1747468801187,0.7903,2492.9,2492.3,6.02]
[1747468801188,4.01204379,2492.5,2492.3,6.02]
[1747468801379,4.01204379,2492.5,2492.4,7.676]
[1747468801596,4.01204379,2492.5,2492.3,6.02]
[1747468801597,4.01219707,2492.4,2492.3,6.02]
[1747468801893,4.80249707,2492.4,2492.3,6.02]
[1747468802262,4.01219707,2492.4,2492.3,6.02]
[1747468803065,4.01211879,2492.5,2492.3,6.02]
[1747468803477,4.01211879,2492.5,2492.1,6.02]
[1747468803791,4.01211879,2492.5,2492.2,1.87121264]
[1747468803999,4.0120361,2492.5,2492.2,1.87121264]
[1747468805111,4.01221902,2492.4,2492.2,1.87121264]
[1747468805325,5.0174,2493.5,2492.3,32.675]
[1747468805470,5.0174,2493.5,2492.7,4.01159061]
[1747468805471,0.7834,2493.5,2492.7,4.01159061]
[1747468805670,0.29709909,2493.9,2492.9,0.8145]
[1747468805903,4.00973486,2494.0,2493.2,4.01078392]
[1747468806109,4.00988802,2493.9,2493.3,4.01073534]
[1747468806270,4.00965486,2494.0,2493.3,8.4905]
[1747468806471,4.00986947,2493.9,2493.3,8.4905]
[1747468806681,0.7834,2494.1,2493.3,0.8145]
[1747468806939,4.01139239,2492.9,2492.7,0.8145]
[1747468807095,4.01139239,2492.9,2492.7,8.4905]
[1747468807413,4.01149074,2492.9,2492.7,7.676]
[1747468807719,4.01126016,2493.0,2492.8,7.676]
[1747468807904,0.7834,2493.2,2492.8,7.676]
[1747468807905,4.01146592,2492.9,2492.8,7.676]
[1747468808080,4.01123366,2493.0,2492.8,7.676]
[1747468808279,4.56114166,2493.1,2492.8,7.676]
[1747468808780,4.01185059,2492.7,2492.5,7.676]
[1747468809113,4.01185059,2492.7,2492.3,0.7685]
[1747468809277,4.01161949,2492.8,2492.3,0.7685]
[1747468809477,4.01161949,2492.8,2492.4,7.676]
[1747468809707,4.01173756,2492.7,2492.4,7.676]
[1747468809886,4.0118786,2492.6,2492.5,7.676]
[1747468810090,4.0118786,2492.6,2492.3,0.7685]
[1747468810091,4.01227762,2492.4,2492.1,0.8203]
[1747468810273,4.01227762,2492.4,2492.2,9.59085985]
[1747468810491,7.71,2492.5,2491.7,0.8203]
[1747468810721,4.0126639,2492.2,2491.8,7.676]
[1747468811237,4.01289633,2492.0,2491.7,0.8203]
[1747468811416,4.01251905,2492.2,2491.8,7.676]
[1747468811616,0.55,2492.1,2491.7,0.48339136]
[1747468811911,0.55,2492.1,2491.7,7.676]
[1747468812235,4.01299582,2492.0,2491.7,7.676]
[1747468812432,4.01305716,2491.9,2491.7,7.676]
[1747468812731,4.01322354,2491.8,2491.4,0.8203]
[1747468812930,4.01305589,2491.9,2491.6,7.676]
[1747468813746,0.8135,2491.9,2491.5,7.676]
[1747468813911,12.26676203,2492.1,2491.4,6.22969538]
[1747468814228,0.55,2491.9,2491.5,11.68957226]
[1747468814530,4.82688387,2491.7,2491.3,25.001]
[1747468814729,4.82688387,2491.7,2491.3,17.325]
[1747468814730,0.55,2491.6,2491.3,17.325]
[1747468814913,4.01379732,2491.5,2490.9,4.84380547]
[1747468815111,4.01379732,2491.5,2491.0,7.715]
[1747468815304,4.01379732,2491.5,2491.1,1.25588055]
[1747468815643,0.8135,2491.7,2491.2,11.72899961]
[1747468815806,4.82693808,2491.7,2491.2,7.715]
[1747468816130,4.01381344,2491.4,2491.2,7.715]
[1747468816935,4.01368223,2491.5,2491.0,4.01443147]
[1747468817137,4.01368223,2491.5,2491.1,8.19936315]
[1747468817923,4.56355428,2491.6,2491.1,8.19936315]
[1747468818326,4.01368342,2491.5,2491.1,8.19936315]
[1747468819339,4.01368342,2491.5,2491.2,7.715]
[1747468819541,4.01365805,2491.5,2490.9,0.8292]
[1747468819724,4.01398319,2491.3,2491.0,7.715]
[1747468820304,4.01398319,2491.3,2490.9,1.2844081]
[1747468820512,4.01412973,2491.2,2491.0,7.716]
[1747468821245,4.01412973,2491.2,2490.7,4.82602338]
[1747468821416,0.8231,2491.2,2490.9,7.716]
[1747468821613,4.56351105,2491.6,2491.1,4.01415702]
[1747468821817,4.01412988,2491.2,2490.8,0.8111]
[1747468822148,4.01395949,2491.4,2490.9,8.19859551]
[1747468822456,4.01395949,2491.4,2490.9,12.21320051]
[1747468822631,4.01364639,2491.5,2490.9,8.19859551]
[1747468823024,4.01380749,2491.4,2490.9,8.19859551]
[1747468824358,0.8015,2491.3,2491.0,7.716]